[Event "Gibraltar Amateurs A 2019"]
[Site "Caleta"]
[Date "2019.01.23"]
[Round "3"]
[White "Lane, Ryan"]
[Black "Bauer, Dieter"]
[Result "1-0"]
[ECO "C41"]
[WhiteElo "1851"]
[BlackElo "1714"]
[Annotator "NA"]
[PlyCount "126"]
[EventDate "2019.01.18"]
[EventType "swiss"]
[EventCountry "GGB"]
[SourceTitle "playchess.com"]
[Source "ChessBase"]
[SourceQuality "1"]
[TimeControl "6600+10"]

1. e4 {[%emt 0:00:00]} d6 {[%emt 0:00:00]} 2. d4 {[%emt 0:00:04]} Nf6 {[%emt 0:00:00]} 3. Nc3 {[%emt 0:00:07]} e5 {[%emt 0:00:00]} 4. Nf3 {[%emt 0:00:40]} exd4 {[%emt 0:00:00]} 5. Nxd4 {[%emt 0:00:09]} Be7 {[%emt 0:00:00] LiveBook: 2525 Games} 6. Bc4 {[%emt 0:00:14]} O-O {[%emt 0:00:04]} 7. Bb3 {[%emt 0:01:24]} a6 {[%emt 0:01:01] C41: Philidor Defence} (7... Re8 8. O-O Bf8 9. f3 c6 10. Kh1 Nbd7 11. a4 Ne5 12. Bg5 h6 13. Bh4 Ng6 14. Bf2 Qc7 15. a5 {1-0 (51) Nepomniachtchi,I (2719)-Kazhgaleyev,M (2582) Almaty 2016}) 8. a4 {[%emt 0:02:12]} c5 {[%emt 0:01:22]} 9. Nde2 {[%emt 0:01:01]} Nc6 {[%emt 0:05:14]} 10. O-O {[%emt 0:03:09]} b6 $146 {[%emt 0:04:58]} ({Predecessor:} 10... Be6 11. Bd5 Bxd5 12. exd5 Nb4 13. Ng3 Qd7 14. Bg5 h6 15. Bxf6 Bxf6 {0-1 (64) Tsifanskaya,L (2095)-Voiska,M (2291) Plovdiv 2013}) 11. Ng3 {[%emt 0:05:36]} Nb4 {[%emt 0:01:58]} 12. Bf4 {[%emt 0:02:55]} Qc7 {[%emt 0:04:35]} 13. Qe2 {[%emt 0:03:00]} Ng4 {[%emt 0:02:58]} 14. Rad1 {[%emt 0:03:33]} Ne5 {[%emt 0:02:53]} 15. Bxe5 {[%emt 0:00:44]} dxe5 {[%emt 0:00:16]} 16. Nd5 {[%emt 0:01:03]} Nxd5 {[%emt 0:03:12]} 17. Bxd5 {[%emt 0:01:59]} Rb8 {[%emt 0:01:53]} 18. Qf3 {[%emt 0:00:00]} g6 {[%emt 0:03:24]} 19. Rd2 {[%emt 0:05:50]} Bg5 {[%emt 0:02:55]} 20. Re2 {[%emt 0:00:29]} Kg7 {[%emt 0:06:17]} 21. Rd1 {[%emt 0:04:38]} h5 {[%emt 0:07:15]} 22. h3 {[%emt 0:01:41]} h4 {[%emt 0:03:18]} 23. Nf1 {[%emt 0:00:14]} b5 {[%emt 0:02:26]} 24. axb5 {[%emt 0:00:38]} axb5 {[%emt 0:00:48]} 25. Ne3 {[%emt 0:00:49]} Rb6 {[%emt 0:15:55]} 26. Ng4 {[%emt 0:02:32]} c4 {[%emt 0:07:14]} 27. Qc3 {[%emt 0:05:25]} f6 {[%emt 0:13:50]} 28. Ra1 {[%emt 0:04:06]} Ba6 {[%emt 0:00:46]} 29. Qb4 {[%emt 0:00:48]} Re8 {[%emt 0:02:56]} 30. Rae1 {[%emt 0:07:16]} Qe7 {[%emt 0:02:39]} 31. Qxe7+ {[%emt 0:03:22]} Rxe7 {[%emt 0:00:01]} 32. Ne3 {[%emt 0:00:39]} Bxe3 {[%emt 0:02:43]} 33. Rxe3 {[%emt 0:00:04]} Bb7 {[%emt 0:03:26]} 34. Rd1 {[%emt 0:03:43]} Rd7 {[%emt 0:00:39]} 35. Re2 {[%emt 0:00:58]} Rbd6 {[%emt 0:01:32]} 36. Red2 {[%emt 0:00:31]} Kf8 {[%emt 0:01:20]} 37. Kf1 {[%emt 0:00:12]} Ke7 {[%emt 0:00:58]} 38. Ke2 {[%emt 0:00:10]} Bxd5 {[%emt 0:01:23]} 39. exd5 {[%emt 0:00:14]} Ra7 {[%emt 0:00:37]} 40. Ke3 {[%emt 0:00:27]} f5 {[%emt 0:00:37]} 41. g3 {[%emt 0:00:38]} hxg3 {[%emt 0:00:34]} 42. fxg3 {[%emt 0:00:05]} Kd7 {[%emt 0:01:32]} 43. g4 {[%emt 0:01:17]} Ra4 {[%emt 0:00:28]} 44. c3 {[%emt 0:01:52]} b4 {[%emt 0:00:47]} 45. Rf2 {[%emt 0:01:22]} Rf6 {[%emt 0:00:14]} 46. Rdf1 {[%emt 0:01:03]} f4+ {[%emt 0:00:17]} 47. Ke4 {[%emt 0:00:11]} Kd6 {[%emt 0:00:03]} 48. h4 {[%emt 0:01:47]} b3 {[%emt 0:00:13]} 49. Rh1 {[%emt 0:00:42]} Ra5 {[%emt 0:00:09]} 50. Rd1 {[%emt 0:00:27]} Rf8 {[%emt 0:00:15]} 51. h5 {[%emt 0:00:40]} gxh5 {[%emt 0:00:09]} 52. gxh5 {[%emt 0:00:05]} Rh8 {[%emt 0:00:13]} 53. Rh2 {[%emt 0:00:11]} Ra2 {[%emt 0:00:22]} ({Better is} 53... Rh6 $14) 54. Rg1 {[%emt 0:00:22]} Rf8 {[%emt 0:00:10]} 55. Rg6+ {[%emt 0:00:38]} Kd7 {[%emt 0:00:02]} 56. Kxe5 {[%emt 0:00:19]} f3 {[%emt 0:00:02]} 57. Rg7+ $18 {[%emt 0:00:17]} Kd8 {[%emt 0:00:11]} 58. Rf2 {[%emt 0:06:06]} Ra1 {[%emt 0:00:24]} 59. h6 {[%emt 0:00:47]} Re1+ {[%emt 0:00:02]} 60. Kd6 {[%emt 0:01:34]} Rf6+ {[%emt 0:00:03]} 61. Kc5 {[%emt 0:00:19]} Re2 {[%emt 0:00:04]} 62. h7 {[%emt 0:00:58]} Re8 {[%emt 0:00:31]} 63. Ra7 {[%emt 0:00:54]} Rc6+ {[%emt 0:00:14]} 1-0

[Event "Gibraltar Amateurs A 2019"]
[Site "Caleta"]
[Date "2019.01.23"]
[Round "3"]
[White "Garcia-Blazquez Perez, Manuel"]
[Black "Bussmann, John"]
[Result "0-1"]
[ECO "B34"]
[WhiteElo "1849"]
[BlackElo "1671"]
[Annotator "NA"]
[PlyCount "102"]
[EventDate "2019.01.18"]
[EventType "swiss"]
[EventCountry "GGB"]
[SourceTitle "playchess.com"]
[Source "ChessBase"]
[SourceQuality "1"]
[TimeControl "6600+10"]

1. e4 {[%emt 0:00:00]} c5 {[%emt 0:02:00]} 2. Nf3 {[%emt 0:00:00]} g6 {[%emt 0:00:09]} 3. d4 {[%emt 0:00:05]} cxd4 {[%emt 0:00:21]} 4. Nxd4 {[%emt 0:00:07]} Bg7 {[%emt 0:00:14]} 5. Nc3 {[%emt 0:00:23]} Nc6 {[%emt 0:00:15]} 6. Be3 {[%emt 0:00:07]} Nf6 {[%emt 0:00:40]} 7. Nxc6 {[%emt 0:00:08]} bxc6 {[%emt 0:00:32]} 8. e5 {[%emt 0:00:07]} Ng8 {[%emt 0:00:09]} 9. f4 {[%emt 0:00:25]} f6 {[%emt 0:04:28]} 10. e6 {[%emt 0:27:35] LiveBook: 8 Games} dxe6 {[%emt 0:18:20] B34: Sicilian: Accelerated Dragon with 5 Nc3: sidelines} 11. Qxd8+ {[%emt 0:00:09]} (11. Qf3 Nh6 12. Qxc6+ Bd7 13. Qb7 Nf5 14. O-O-O Nd6 15. Qa6 Kf7 16. Bc5 Qc7 17. Bxd6 exd6 18. Qxd6 Qxd6 19. Rxd6 {1-0 (50) Chigaev,M (2527)-Andreev,E (2458) St Petersburg 2015}) 11... Kxd8 {[%emt 0:00:11]} 12. O-O-O+ {[%emt 0:00:03]} Ke8 $146 {[%emt 0:00:37]} ({Predecessor:} 12... Kc7 13. g3 Nh6 14. Be2 Nf5 15. Bf2 Bb7 16. Bf3 Bh6 17. Kb1 Nd6 18. Rhe1 {0-1 (82) Hu,Y (1394)-Cheah,K (1665) Hong Kong 2016}) 13. Na4 {[%emt 0:01:00]} Nh6 {[%emt 0:01:02]} 14. g3 {[%emt 0:03:18]} Nf5 {[%emt 0:07:15]} 15. Bf2 {[%emt 0:01:44]} Kf7 {[%emt 0:04:42]} 16. Nc5 {[%emt 0:00:33]} a5 {[%emt 0:00:48]} 17. Bg2 {[%emt 0:12:28]} Nd6 {[%emt 0:00:48]} 18. Rhe1 {[%emt 0:00:14]} Rb8 {[%emt 0:02:45]} 19. Bxc6 {[%emt 0:05:35]} f5 {[%emt 0:20:16]} 20. Nd3 {[%emt 0:07:44]} Bb7 {[%emt 0:06:29]} 21. Bd7 {[%emt 0:06:27]} Bd5 {[%emt 0:01:43]} 22. b3 {[%emt 0:02:23]} Bc3 {[%emt 0:05:46]} 23. Ne5+ {[%emt 0:00:08]} Bxe5 {[%emt 0:03:33]} 24. Rxe5 {[%emt 0:02:54]} Rb7 {[%emt 0:02:22]} 25. Ba4 {[%emt 0:02:46]} Ne4 {[%emt 0:01:39]} 26. Bd4 {[%emt 0:00:08]} Rc8 {[%emt 0:00:18]} 27. Kb2 {[%emt 0:00:24]} Rc4 {[%emt 0:01:54]} 28. Ka3 {[%emt 0:06:13]} Rxc2 {[%emt 0:00:42]} 29. Rg1 {[%emt 0:07:53]} Rb4 {[%emt 0:00:56]} 30. Bb2 {[%emt 0:01:59]} Nc5 {[%emt 0:01:07]} 31. Rc1 {[%emt 0:00:26]} Rxc1 {[%emt 0:03:43]} 32. Bxc1 {[%emt 0:00:01]} Nd3 {[%emt 0:00:26]} 33. Bd2 {[%emt 0:08:55]} Nxe5 {[%emt 0:01:37]} 34. fxe5 {[%emt 0:00:02]} Re4 {[%emt 0:00:50]} 35. Bf4 {[%emt 0:00:27]} Re2 {[%emt 0:00:28]} 36. h4 {[%emt 0:00:10]} Kg7 {[%emt 0:00:35]} 37. Bb5 {[%emt 0:00:11]} Re4 {[%emt 0:00:41]} 38. Kb2 {[%emt 0:00:21]} h6 {[%emt 0:00:23]} 39. Kc3 {[%emt 0:00:31]} Rb4 $19 {[%emt 0:01:36]} 40. Bc4 {[%emt 0:00:23]} Bxc4 {[%emt 0:04:37]} 41. bxc4 {[%emt 0:00:03]} g5 {[%emt 0:02:09]} 42. hxg5 {[%emt 0:00:06]} hxg5 {[%emt 0:00:06]} 43. Bxg5 {[%emt 0:00:22]} Kf7 {[%emt 0:00:07]} 44. a3 {[%emt 0:02:38]} Rb7 {[%emt 0:00:33]} 45. c5 {[%emt 0:00:20]} Ke8 {[%emt 0:00:15]} 46. Kc4 {[%emt 0:00:18]} Kd7 {[%emt 0:00:19]} 47. Bd2 {[%emt 0:00:21]} a4 {[%emt 0:00:12]} 48. Bb4 {[%emt 0:00:58]} Kc6 {[%emt 0:00:11]} 49. Kd4 {[%emt 0:00:11]} Rd7+ {[%emt 0:00:47]} 50. Ke3 {[%emt 0:00:41]} Rd5 {[%emt 0:00:21]} 51. Kf4 {[%emt 0:00:11]} Rd4+ {[%emt 0:00:23]} 0-1

[Event "Gibraltar Amateurs A 2019"]
[Site "Caleta"]
[Date "2019.01.23"]
[Round "3"]
[White "Carr, Jay"]
[Black "Galinskyi, Mykhalo"]
[Result "1-0"]
[ECO "A13"]
[WhiteElo "1842"]
[BlackElo "1540"]
[Annotator "NA"]
[PlyCount "77"]
[EventDate "2019.01.18"]
[EventType "swiss"]
[EventCountry "GGB"]
[SourceTitle "playchess.com"]
[Source "ChessBase"]
[SourceQuality "1"]
[TimeControl "6600+10"]

1. c4 {[%emt 0:00:00]} e6 {[%emt 0:00:00]} 2. g3 {[%emt 0:00:00]} d5 {[%emt 0:00:00]} 3. Bg2 {[%emt 0:00:15]} Nf6 {[%emt 0:00:12]} 4. Nf3 {[%emt 0:00:07]} dxc4 {[%emt 0:00:17] LiveBook: 3518 Games} 5. Qa4+ {[%emt 0:05:04]} Bd7 {[%emt 0:03:15]} 6. Qxc4 {[%emt 0:00:09]} Bc6 {[%emt 0:03:39]} 7. O-O {[%emt 0:00:28]} a6 {[%emt 0:00:47] A13: English Opening: 1...e6} (7... Nbd7 8. Qc2 e5 9. Nc3 Bd6 10. d4 exd4 11. Nxd4 Bxg2 12. Kxg2 O-O 13. Rd1 Be5 14. e4 Re8 15. f3 Bxd4 16. Rxd4 h6 17. Bf4 c6 18. e5 Nh7 19. Rad1 Nhf8 20. Ne4 Qb6 21. Rd6 Rad8 22. Rxd7 {1-0 (22) Fressinet,L (2693)-Istratescu,A (2633) Nancy 2012}) 8. d3 {[%emt 0:02:47]} Bd6 $146 {[%emt 0:00:13]} ({Predecessor:} 8... b5 9. Qc2 Bb7 10. a4 b4 11. Nbd2 Nbd7 12. Nc4 a5 13. Bf4 Nd5 14. Nd4 g5 15. Bd2 {1-0 (30) Ajrapetjan,Y (2259)-Bodnar,N (2378) Alushta 2004}) 9. b3 {[%emt 0:02:40]} Nbd7 {[%emt 0:01:48]} 10. Bb2 {[%emt 0:00:34]} O-O {[%emt 0:00:31]} 11. Nbd2 {[%emt 0:02:58]} Rc8 {[%emt 0:05:56]} 12. Qc2 {[%emt 0:03:18]} (12. e4 $16) 12... Re8 {[%emt 0:04:13]} 13. Nc4 {[%emt 0:06:21]} b5 {[%emt 0:07:46]} 14. Na5 {[%emt 0:04:46]} Ba8 {[%emt 0:01:08]} 15. Nc6 {[%emt 0:03:41]} Bxc6 $1 {[%emt 0:00:19]} 16. Qxc6 {[%emt 0:00:02]} Nb8 {[%emt 0:02:36]} 17. Qc3 {[%emt 0:11:31]} c5 {[%emt 0:02:01]} 18. Rac1 {[%emt 0:08:15]} Nc6 {[%emt 0:02:36]} 19. Qd2 {[%emt 0:05:30]} Qb6 {[%emt 0:04:53]} 20. h3 {[%emt 0:11:57]} e5 {[%emt 0:02:29]} 21. Ng5 {[%emt 0:06:37]} h6 {[%emt 0:02:45]} 22. Ne4 {[%emt 0:00:08]} Nxe4 {[%emt 0:00:09]} 23. Bxe4 {[%emt 0:00:11]} Nd4 {[%emt 0:00:20]} 24. Bc3 {[%emt 0:05:34]} b4 {[%emt 0:01:32]} 25. Ba1 {[%emt 0:00:06]} a5 {[%emt 0:00:37]} 26. e3 {[%emt 0:05:18]} Ne6 {[%emt 0:05:01]} 27. Rfd1 {[%emt 0:03:12]} Ng5 {[%emt 0:03:06]} 28. Bg2 {[%emt 0:00:28]} Ne6 {[%emt 0:01:14]} 29. Bd5 {[%emt 0:02:17]} Nc7 {[%emt 0:02:12]} 30. Bc4 {[%emt 0:00:06]} Ne6 {[%emt 0:02:28]} 31. Bd5 {[%emt 0:02:54]} Nc7 {[%emt 0:00:14]} 32. Bg2 {[%emt 0:00:15]} Ne6 {[%emt 0:00:14]} 33. Qe2 {[%emt 0:00:26]} Qc7 {[%emt 0:01:41]} 34. Rc4 {[%emt 0:01:25]} f5 $16 {[%emt 0:03:32]} 35. Bd5 {[%emt 0:01:16]} Kh8 {[%emt 0:00:25]} 36. Qh5 {[%emt 0:00:44]} f4 {[%emt 0:05:02]} 37. gxf4 {[%emt 0:00:41]} exf4 {[%emt 0:00:15]} 38. Qxh6+ {[%emt 0:01:26]} Kg8 {[%emt 0:00:41]} 39. Bxe6+ {[%emt 0:13:03]} 1-0

[Event "Gibraltar Amateurs A 2019"]
[Site "Caleta"]
[Date "2019.01.23"]
[Round "3"]
[White "Wilson, Matthew R"]
[Black "Anjali R. Sagar"]
[Result "0-1"]
[ECO "C54"]
[WhiteElo "1822"]
[BlackElo "1787"]
[Annotator "NA"]
[PlyCount "44"]
[EventDate "2019.01.18"]
[EventType "swiss"]
[EventCountry "GGB"]
[SourceTitle "playchess.com"]
[Source "ChessBase"]
[SourceQuality "1"]
[TimeControl "6600+10"]

1. e4 {[%emt 0:00:00]} e5 {[%emt 0:00:02]} 2. Nf3 {[%emt 0:00:00]} Nc6 {[%emt 0:00:07]} 3. Bc4 {[%emt 0:00:03]} Bc5 {[%emt 0:00:11]} 4. c3 {[%emt 0:00:05]} Nf6 {[%emt 0:00:08]} 5. d3 {[%emt 0:00:03]} a6 {[%emt 0:00:11] LiveBook: 2492 Games} 6. Nbd2 {[%emt 0:01:46]} O-O {[%emt 0:01:09]} 7. Bb3 {[%emt 0:00:49]} Ba7 {[%emt 0:00:36]} 8. h3 {[%emt 0:00:26]} d5 {[%emt 0:00:46]} 9. O-O {[%emt 0:06:32]} dxe4 {[%emt 0:01:33]} 10. dxe4 {[%emt 0:00:37]} Qe7 {[%emt 0:01:45]} 11. Qe2 $17 {[%emt 0:01:17]} (11. Re1 $11) 11... Nh5 {[%emt 0:03:50]} 12. Nc4 {[%emt 0:05:51]} Ng3 {[%emt 0:01:05]} 13. Qe1 {[%emt 0:01:27]} Nxf1 {[%emt 0:03:48]} 14. Kxf1 {[%emt 0:00:02]} Be6 {[%emt 0:01:04]} 15. Ne3 {[%emt 0:03:07]} Bxe3 {[%emt 0:04:19]} 16. Bxe3 {[%emt 0:00:26]} Bxb3 {[%emt 0:01:33]} 17. axb3 {[%emt 0:00:01]} Qe6 {[%emt 0:02:11]} 18. b4 {[%emt 0:02:31]} Qc4+ {[%emt 0:04:29]} 19. Qe2 {[%emt 0:01:12]} Qxe4 {[%emt 0:02:09]} 20. Ng5 {[%emt 0:10:19]} Qg6 {[%emt 0:01:10]} 21. Qc4 {[%emt 0:00:09]} Rad8 {[%emt 0:04:25]} 22. Ne4 {[%emt 0:02:28]} b5 {[%emt 0:05:22]} 0-1

[Event "Gibraltar Amateurs A 2019"]
[Site "Caleta"]
[Date "2019.01.23"]
[Round "3"]
[White "Manukonda Arun"]
[Black "Christophe-hayot, Romain"]
[Result "1-0"]
[ECO "A08"]
[WhiteElo "1814"]
[BlackElo "1729"]
[Annotator "NA"]
[PlyCount "115"]
[EventDate "2019.01.18"]
[EventType "swiss"]
[EventCountry "GGB"]
[SourceTitle "playchess.com"]
[Source "ChessBase"]
[SourceQuality "1"]
[TimeControl "6600+10"]

1. Nf3 {[%emt 0:00:00]} d5 {[%emt 0:00:14]} 2. g3 {[%emt 0:00:12]} c5 {[%emt 0:00:35]} 3. Bg2 {[%emt 0:00:02]} Nf6 {[%emt 0:00:18]} 4. d3 {[%emt 0:00:01]} Nc6 {[%emt 0:00:32]} 5. O-O {[%emt 0:00:08]} e5 {[%emt 0:00:42]} 6. Nbd2 {[%emt 0:02:29]} Bd6 {[%emt 0:00:40]} 7. e4 {[%emt 0:00:11]} d4 {[%emt 0:01:40]} 8. a4 {[%emt 0:00:14]} Bg4 {[%emt 0:03:06]} 9. h3 {[%emt 0:00:05]} Bd7 {[%emt 0:00:44]} 10. Nc4 {[%emt 0:00:08]} Bc7 {[%emt 0:00:31]} 11. Nh4 {[%emt 0:02:51]} h6 {[%emt 0:03:35]} 12. Nf5 {[%emt 0:04:07]} Bxf5 {[%emt 0:01:43]} 13. exf5 {[%emt 0:00:05]} O-O {[%emt 0:00:10]} 14. Bd2 {[%emt 0:11:56]} Qd7 {[%emt 0:01:30]} 15. Qf3 {[%emt 0:08:06]} Rae8 {[%emt 0:00:51]} 16. Rfe1 {[%emt 0:01:14]} Re7 {[%emt 0:00:45]} 17. g4 {[%emt 0:03:57]} Rfe8 {[%emt 0:00:33]} 18. Re4 {[%emt 0:05:44]} Nxe4 {[%emt 0:02:50]} 19. Qxe4 {[%emt 0:00:17]} f6 {[%emt 0:00:04]} 20. h4 {[%emt 0:00:56]} Rd8 {[%emt 0:00:38]} 21. g5 {[%emt 0:00:24]} hxg5 {[%emt 0:01:43]} 22. hxg5 {[%emt 0:00:09]} fxg5 {[%emt 0:01:25]} 23. Bxg5 {[%emt 0:00:28]} Qe8 {[%emt 0:00:10]} 24. Qh4 {[%emt 0:01:07]} Rdd7 {[%emt 0:00:28]} 25. Be4 {[%emt 0:01:04]} Bd8 {[%emt 0:02:10]} 26. Kg2 {[%emt 0:04:59]} Rf7 {[%emt 0:00:10]} 27. Rh1 {[%emt 0:00:13]} Rf6 {[%emt 0:00:37]} 28. Qh7+ {[%emt 0:11:06]} Kf7 {[%emt 0:00:04]} 29. Bf3 {[%emt 0:01:02]} Qf8 {[%emt 0:05:01]} 30. Bxc6 {[%emt 0:04:28]} bxc6 {[%emt 0:07:32]} 31. Nxe5+ {[%emt 0:00:27]} Ke8 {[%emt 0:00:35]} 32. Nxd7 {[%emt 0:02:56]} Kxd7 {[%emt 0:00:30]} 33. Bxf6 {[%emt 0:00:10]} Bxf6 {[%emt 0:00:30]} 34. Re1 {[%emt 0:00:50]} Kc7 {[%emt 0:02:57]} 35. Re6 {[%emt 0:00:39]} Kb6 {[%emt 0:00:04]} 36. Qh5 {[%emt 0:02:31]} Qd8 {[%emt 0:00:22]} 37. Qf3 {[%emt 0:00:14]} Qd7 {[%emt 0:00:24]} 38. Qe4 {[%emt 0:01:09]} a5 {[%emt 0:00:17]} 39. Kf1 {[%emt 0:01:26]} Kc7 {[%emt 0:00:27]} 40. Ke2 {[%emt 0:01:24]} Kb6 {[%emt 0:00:29]} 41. Kd1 {[%emt 0:00:02]} Kb7 {[%emt 0:00:06]} 42. Kc1 {[%emt 0:00:09]} Qc7 {[%emt 0:00:11]} 43. Kb1 {[%emt 0:00:34]} Qd7 {[%emt 0:00:40]} 44. Re8 {[%emt 0:00:50]} Qc7 {[%emt 0:08:19]} 45. Qe6 {[%emt 0:00:39]} Kb6 {[%emt 0:02:29]} 46. Rc8 {[%emt 0:00:27]} Qb7 {[%emt 0:00:05]} 47. Rf8 {[%emt 0:01:10]} Ka6 {[%emt 0:05:30]} 48. Rf7 {[%emt 0:01:13]} Qa8 {[%emt 0:00:06]} 49. Qd7 {[%emt 0:01:12]} c4 {[%emt 0:00:54]} 50. dxc4 {[%emt 0:00:41]} Kb6 {[%emt 0:00:18]} 51. Rxf6 {[%emt 0:01:20]} gxf6 {[%emt 0:00:14]} 52. Qxd4+ {[%emt 0:00:05]} Ka6 {[%emt 0:00:14]} 53. Qxf6 {[%emt 0:00:09]} Kb6 {[%emt 0:03:50]} 54. Qe7 {[%emt 0:00:34]} Qh8 {[%emt 0:00:22]} 55. f6 {[%emt 0:00:35]} Qh1+ {[%emt 0:00:33]} 56. Ka2 {[%emt 0:00:04]} Qf1 {[%emt 0:00:17]} 57. Qe3+ {[%emt 0:00:42]} c5 {[%emt 0:00:39]} 58. f7 {[%emt 0:00:11]} 1-0

[Event "Gibraltar Amateurs A 2019"]
[Site "Caleta"]
[Date "2019.01.23"]
[Round "3"]
[White "Mircov, Nicola-Alexandar"]
[Black "Gostelow, David W"]
[Result "1-0"]
[ECO "B32"]
[WhiteElo "1797"]
[BlackElo "1850"]
[Annotator "NA"]
[PlyCount "120"]
[EventDate "2019.01.18"]
[EventType "swiss"]
[EventCountry "GGB"]
[SourceTitle "playchess.com"]
[Source "ChessBase"]
[SourceQuality "1"]
[TimeControl "6600+10"]

1. e4 {[%emt 0:05:12]} c5 {[%emt 0:00:25]} 2. Nf3 {[%emt 0:00:08]} Nc6 {[%emt 0:00:06]} 3. d4 {[%emt 0:00:05]} cxd4 {[%emt 0:00:04]} 4. Nxd4 {[%emt 0:00:06]} e5 {[%emt 0:00:04]} 5. Nb5 {[%emt 0:00:17]} a6 {[%emt 0:00:01]} 6. Nd6+ {[%emt 0:00:08]} Bxd6 {[%emt 0:00:04]} 7. Qxd6 {[%emt 0:00:05]} Qf6 {[%emt 0:00:04]} 8. Qd1 {[%emt 0:00:17]} Qg6 {[%emt 0:00:06]} 9. Nc3 {[%emt 0:00:24]} d5 {[%emt 0:00:08]} 10. Nxd5 {[%emt 0:00:16]} Qxe4+ {[%emt 0:00:08]} 11. Be3 {[%emt 0:00:16]} Nd4 {[%emt 0:00:21]} 12. Nc7+ {[%emt 0:00:21]} Ke7 {[%emt 0:00:02]} 13. Be2 {[%emt 0:00:28] B32: Sicilian: Löwenthal and Kalashnikov Variations} Nxc2+ {[%emt 0:54:13]} 14. Kf1 $1 {[%emt 0:00:15]} Nxe3+ {[%emt 0:04:50]} 15. fxe3 {[%emt 0:00:09]} Rb8 {[%emt 0:08:47]} 16. Nd5+ {[%emt 0:09:09]} Ke8 $146 {[%emt 0:10:04]} ({Predecessor:} 16... Kf8 17. Nb6 Qf5+ 18. Ke1 Qf6 19. Nxc8 Qh4+ 20. g3 Qb4+ {½-½ (51) Vallejo Pons,F (2650)-Tarchichi,P (2153) Paris 2008 EXT 2010 [Primel,D]}) 17. Rc1 {[%emt 0:23:00]} Nf6 {[%emt 0:02:43]} 18. Nxf6+ {[%emt 0:01:14]} gxf6 {[%emt 0:00:04]} 19. Qd6 {[%emt 0:00:31]} Qf5+ {[%emt 0:01:52]} 20. Ke1 {[%emt 0:03:05]} Ra8 {[%emt 0:00:39]} 21. Rc7 {[%emt 0:10:22]} Qe6 {[%emt 0:01:44]} 22. Qb4 {[%emt 0:04:38]} Kd8 {[%emt 0:13:03]} 23. Bc4 {[%emt 0:01:20]} Kxc7 {[%emt 0:00:15]} 24. Bxe6 {[%emt 0:00:12]} Bxe6 {[%emt 0:00:20]} 25. Qe7+ {[%emt 0:00:31]} Kb6 {[%emt 0:01:27]} 26. Qxf6 {[%emt 0:11:27]} Rhc8 {[%emt 0:02:42]} 27. Kd2 {[%emt 0:07:07]} Rd8+ {[%emt 0:00:17]} 28. Ke2 {[%emt 0:00:43]} Rac8 {[%emt 0:00:22]} 29. Qxe5 {[%emt 0:01:47]} Rc2+ {[%emt 0:00:09]} 30. Kf3 {[%emt 0:00:29]} Rdd2 {[%emt 0:00:31] [#]} 31. Rg1 $1 {[%emt 0:03:11]} Rxb2 {[%emt 0:00:07]} 32. a4 {[%emt 0:00:58]} Ka7 {[%emt 0:01:06]} 33. Qc5+ {[%emt 0:00:57]} Kb8 {[%emt 0:00:21]} 34. h3 {[%emt 0:06:15]} Rf2+ {[%emt 0:00:54] [#]} 35. Kg3 $1 {[%emt 0:00:14]} Rfe2 {[%emt 0:00:49]} 36. Qe5+ {[%emt 0:02:18]} Ka7 {[%emt 0:00:27]} 37. Qe4 {[%emt 0:00:15]} Rb3 $18 {[%emt 0:00:55]} (37... a5 $16 {was worth a try.}) 38. Qd4+ {[%emt 0:06:09]} Ka8 {[%emt 0:00:27]} 39. Kf3 {[%emt 0:01:49]} Rbb2 {[%emt 0:00:51]} 40. g4 {[%emt 0:02:14]} Rbd2 {[%emt 0:01:51]} 41. Qh8+ {[%emt 0:00:52]} Ka7 {[%emt 0:00:03]} 42. Qxh7 {[%emt 0:00:22]} Bd5+ {[%emt 0:00:37]} 43. Kf4 {[%emt 0:00:28]} Ra2 {[%emt 0:00:08]} 44. Qd3 {[%emt 0:02:34]} Red2 {[%emt 0:00:07]} 45. Qc3 {[%emt 0:00:45]} Rxa4+ {[%emt 0:00:34]} 46. Kg5 {[%emt 0:00:19]} Raa2 {[%emt 0:00:07]} 47. Qc5+ {[%emt 0:00:51]} Kb8 {[%emt 0:00:10]} 48. h4 {[%emt 0:00:29]} Be6 {[%emt 0:00:02]} 49. Kf6 {[%emt 0:00:33]} Rac2 {[%emt 0:00:33]} 50. Qe5+ {[%emt 0:00:08]} Ka7 {[%emt 0:00:08]} 51. h5 {[%emt 0:00:16]} Rd5 {[%emt 0:00:59]} 52. Qe4 {[%emt 0:00:14]} Rh2 {[%emt 0:00:20]} 53. Qf4 {[%emt 0:00:27]} Rh3 {[%emt 0:00:16]} 54. h6 {[%emt 0:00:11]} Rd8 {[%emt 0:00:10]} 55. g5 {[%emt 0:00:59]} Rd5 {[%emt 0:00:18]} 56. e4 {[%emt 0:00:28]} Rdd3 {[%emt 0:00:10]} 57. Kg7 {[%emt 0:00:17]} Rdf3 {[%emt 0:00:13]} 58. Qe5 {[%emt 0:00:13]} Rh5 {[%emt 0:00:19]} 59. Rd1 {[%emt 0:00:19]} Rh4 {[%emt 0:00:53]} 60. Qc5+ {[%emt 0:00:08]} b6 {[%emt 0:00:30]} 1-0

[Event "Gibraltar Amateurs A 2019"]
[Site "Caleta"]
[Date "2019.01.23"]
[Round "3"]
[White "Poggio, Freddie"]
[Black "Sahil Dhawan"]
[Result "0-1"]
[ECO "D05"]
[WhiteElo "1765"]
[BlackElo "1843"]
[Annotator "NA"]
[PlyCount "62"]
[EventDate "2019.01.18"]
[EventType "swiss"]
[EventCountry "GGB"]
[SourceTitle "playchess.com"]
[Source "ChessBase"]
[SourceQuality "1"]
[TimeControl "6600+10"]

1. d4 {[%emt 0:00:00]} Nf6 {[%emt 0:00:15]} 2. Nf3 {[%emt 0:00:10]} e6 {[%emt 0:00:15]} 3. e3 {[%emt 0:00:49]} d5 {[%emt 0:00:47]} 4. Bd3 {[%emt 0:00:09]} Be7 {[%emt 0:00:58]} 5. Nbd2 {[%emt 0:00:42]} O-O {[%emt 0:00:28]} 6. O-O {[%emt 0:00:35]} b6 {[%emt 0:00:39]} 7. Re1 {[%emt 0:00:56]} Bb7 {[%emt 0:00:05]} 8. c3 {[%emt 0:01:42]} c5 {[%emt 0:00:12]} 9. e4 {[%emt 0:01:16]} cxd4 {[%emt 0:18:25]} 10. cxd4 {[%emt 0:04:14]} dxe4 {[%emt 0:01:11]} 11. Nxe4 {[%emt 0:00:49]} Nc6 {[%emt 0:01:32]} 12. Bg5 $15 {[%emt 0:07:40]} Nxe4 {[%emt 0:18:45]} 13. Bxe7 {[%emt 0:01:42]} Nxf2 {[%emt 0:01:12]} 14. Kxf2 {[%emt 0:07:33]} Nxe7 {[%emt 0:04:29]} 15. Bxh7+ {[%emt 0:03:00]} Kxh7 {[%emt 0:00:50]} 16. Ng5+ {[%emt 0:00:35]} Kg8 {[%emt 0:05:44]} 17. Qh5 {[%emt 0:04:30]} Qxd4+ {[%emt 0:00:06]} 18. Re3 {[%emt 0:00:42]} Qd2+ {[%emt 0:00:23]} 19. Re2 {[%emt 0:01:27]} Qf4+ {[%emt 0:02:28]} 20. Kg1 {[%emt 0:02:39]} Qf5 {[%emt 0:00:10]} 21. Rf1 {[%emt 0:00:29]} Qg6 {[%emt 0:00:13]} 22. Qh4 {[%emt 0:05:04]} Nf5 {[%emt 0:01:11]} 23. Qf4 {[%emt 0:00:41]} Ba6 {[%emt 0:00:22]} 24. Rfe1 {[%emt 0:05:03]} Bxe2 {[%emt 0:00:30]} 25. Rxe2 {[%emt 0:00:08]} Rad8 {[%emt 0:00:28]} 26. g4 {[%emt 0:04:12]} Nd4 {[%emt 0:01:04]} 27. Rf2 {[%emt 0:02:06]} f6 {[%emt 0:01:42]} 28. Nf3 {[%emt 0:03:53]} e5 {[%emt 0:01:10]} 29. Qg3 {[%emt 0:00:37]} Nxf3+ {[%emt 0:00:17]} 30. Qxf3 {[%emt 0:03:07]} Rd3 {[%emt 0:00:21]} 31. Qe2 {[%emt 0:02:36]} Rfd8 {[%emt 0:00:38]} 0-1